[Event "Titled Tuesday Blitz April 12 Early 2022"]
[White "Biletskiy, Danylo"]
[Black "Bettalli, Francesco"]
[WhiteFideId "14155419"]
[BlackFideId "2816453"]
[WhiteElo "2087"]
[BlackElo "2216"]
[Result "1/2-1/2"]
[Round "10"]
[TimeControl "180+1"]
[Date "2022.04.13"]
[WhiteClock "0:00:04"]
[BlackClock "0:00:44"]

1. e4 {[%clk 0:02:59]}  e5 {[%clk 0:02:59]} 2. Nf3 {[%clk 0:02:59]}  Nf6 {[%clk 0:03:00]} 3. Nc3 {[%clk 0:02:59]}  Bc5 {[%clk 0:03:00]} 4. Bc4 {[%clk 0:02:57]}  O-O {[%clk 0:02:59]} 5. O-O {[%clk 0:02:56]}  d6 {[%clk 0:02:58]} 6. a3 {[%clk 0:02:55]}  h6 {[%clk 0:02:59]} 7. b4 {[%clk 0:02:53]}  Bd4 {[%clk 0:02:59]} 8. Nxd4 {[%clk 0:02:49]}  exd4 {[%clk 0:03:00]} 9. Ne2 {[%clk 0:02:49]}  Nxe4 {[%clk 0:03:00]} 10. Nxd4 {[%clk 0:02:43]}  d5 {[%clk 0:03:00]} 11. Bd3 {[%clk 0:02:40]}  b6 {[%clk 0:02:58]} 12. Bb2 {[%clk 0:02:39]}  c5 {[%clk 0:02:58]} 13. Nf3 {[%clk 0:02:33]}  Bg4 {[%clk 0:02:56]} 14. Be2 {[%clk 0:02:32]}  Nc6 {[%clk 0:02:52]} 15. d3 {[%clk 0:02:32]}  Nd6 {[%clk 0:02:51]} 16. Rb1 {[%clk 0:02:29]}  d4 {[%clk 0:02:51]} 17. Re1 {[%clk 0:02:21]}  Qf6 {[%clk 0:02:50]} 18. Qd2 {[%clk 0:02:12]}  Qg6 {[%clk 0:02:21]} 19. c3 {[%clk 0:02:06]}  dxc3 {[%clk 0:02:14]} 20. Bxc3 {[%clk 0:02:07]}  cxb4 {[%clk 0:02:11]} 21. axb4 {[%clk 0:02:05]}  Rad8 {[%clk 0:02:12]} 22. Qf4 {[%clk 0:01:51]}  Bxf3 {[%clk 0:01:57]} 23. Bxf3 {[%clk 0:01:51]}  Nb5 {[%clk 0:01:58]} 24. Ba1 {[%clk 0:01:43]}  Ncd4 {[%clk 0:01:57]} 25. Re4 {[%clk 0:01:33]}  Nxf3+ {[%clk 0:01:43]} 26. Qxf3 {[%clk 0:01:33]}  Rfe8 {[%clk 0:01:37]} 27. Rg4 {[%clk 0:01:31]}  Qe6 {[%clk 0:01:06]} 28. Rxg7+ {[%clk 0:01:24]}  Kf8 {[%clk 0:01:07]} 29. h3 {[%clk 0:01:12]}  Nd4 {[%clk 0:01:07]} 30. Bxd4 {[%clk 0:01:04]}  Rxd4 {[%clk 0:01:07]} 31. Rg4 {[%clk 0:00:53]}  Rxg4 {[%clk 0:01:05]} 32. hxg4 {[%clk 0:00:54]}  Kg7 {[%clk 0:01:02]} 33. Ra1 {[%clk 0:00:52]}  Re7 {[%clk 0:00:56]} 34. Qf4 {[%clk 0:00:36]}  a5 {[%clk 0:00:48]} 35. bxa5 {[%clk 0:00:33]}  bxa5 {[%clk 0:00:49]} 36. Qd4+ {[%clk 0:00:30]}  Kh7 {[%clk 0:00:47]} 37. f3 {[%clk 0:00:22]}  Rd7 {[%clk 0:00:46]} 38. Qe4+ {[%clk 0:00:21]}  Qxe4 {[%clk 0:00:46]} 39. dxe4 {[%clk 0:00:21]}  Ra7 {[%clk 0:00:47]} 40. Ra4 {[%clk 0:00:21]}  Kg6 {[%clk 0:00:47]} 41. Kf2 {[%clk 0:00:21]}  Kf6 {[%clk 0:00:47]} 42. Ke3 {[%clk 0:00:22]}  Ke5 {[%clk 0:00:48]} 43. f4+ {[%clk 0:00:22]}  Kd6 {[%clk 0:00:48]} 44. Kd4 {[%clk 0:00:22]}  Kc6 {[%clk 0:00:48]} 45. e5 {[%clk 0:00:19]}  Kb5 {[%clk 0:00:49]} 46. Ra1 {[%clk 0:00:19]}  Rd7+ {[%clk 0:00:45]} 47. Ke4 {[%clk 0:00:18]}  a4 {[%clk 0:00:46]} 48. f5 {[%clk 0:00:18]}  Rd2 {[%clk 0:00:45]} 49. g3 {[%clk 0:00:06]}  Kb4 {[%clk 0:00:45]} 50. e6 {[%clk 0:00:06]}  fxe6 {[%clk 0:00:45]} 51. fxe6 {[%clk 0:00:07]}  a3 {[%clk 0:00:46]} 52. Kf5 {[%clk 0:00:05]}  Rf2+ {[%clk 0:00:43]} 53. Kg6 {[%clk 0:00:04]}  Re2 {[%clk 0:00:43]} 54. Kf7 {[%clk 0:00:05]}  Rf2+ {[%clk 0:00:41]} 55. Ke8 {[%clk 0:00:05]}  Kb3 {[%clk 0:00:35]} 56. e7 {[%clk 0:00:05]}  Kb2 {[%clk 0:00:36]} 57. Re1 {[%clk 0:00:04]}  a2 {[%clk 0:00:35]} 58. Kd8 {[%clk 0:00:05]}  Rd2+ {[%clk 0:00:35]} 59. Kc7 {[%clk 0:00:04]}  Rc2+ {[%clk 0:00:36]} 60. Kb7 {[%clk 0:00:04]}  Rc1 {[%clk 0:00:36]} 61. Rxc1 {[%clk 0:00:04]}  Kxc1 {[%clk 0:00:37]} 62. e8=Q {[%clk 0:00:04]}  a1=Q {[%clk 0:00:38]} 63. Qe1+ {[%clk 0:00:05]}  Kb2 {[%clk 0:00:39]} 64. Qxa1+ {[%clk 0:00:05]}  Kxa1 {[%clk 0:00:40]} 65. Kc6 {[%clk 0:00:06]}  Kb2 {[%clk 0:00:40]} 66. Kd6 {[%clk 0:00:06]}  Kc2 {[%clk 0:00:41]} 67. Ke6 {[%clk 0:00:07]}  Kd2 {[%clk 0:00:42]} 68. Kf6 {[%clk 0:00:08]}  Ke2 {[%clk 0:00:43]} 69. Kg6 {[%clk 0:00:08]}  Kf3 {[%clk 0:00:44]} 70. Kxh6 {[%clk 0:00:04]}  Kxg4 {[%clk 0:00:44]} 1/2-1/2


[Site "https://www.chess.com"]

[Event "Titled Tuesday Blitz April 12 Early 2022"]
[White "Bures, Vit"]
[Black "Vianello, Enrico"]
[WhiteFideId "309052"]
[BlackFideId "810738"]
[WhiteElo "2079"]
[BlackElo "2265"]
[Result "1-0"]
[Round "10"]
[TimeControl "180+1"]
[Date "2022.04.13"]
[WhiteClock "0:00:26"]
[BlackClock "0:00:03"]

1. d4 {[%clk 0:03:00]}  d5 {[%clk 0:02:59]} 2. c4 {[%clk 0:03:00]}  Nc6 {[%clk 0:03:00]} 3. Nc3 {[%clk 0:02:59]}  dxc4 {[%clk 0:03:00]} 4. Nf3 {[%clk 0:02:58]}  Bg4 {[%clk 0:02:59]} 5. e3 {[%clk 0:02:52]}  e5 {[%clk 0:02:58]} 6. Bxc4 {[%clk 0:02:43]}  exd4 {[%clk 0:02:56]} 7. exd4 {[%clk 0:02:44]}  Bxf3 {[%clk 0:02:53]} 8. Qxf3 {[%clk 0:02:42]}  Qe7+ {[%clk 0:02:49]} 9. Be3 {[%clk 0:02:40]}  O-O-O {[%clk 0:02:41]} 10. O-O-O {[%clk 0:02:39]}  Nf6 {[%clk 0:02:38]} 11. Rhe1 {[%clk 0:02:39]}  Qb4 {[%clk 0:02:17]} 12. Bxf7 {[%clk 0:02:30]}  Nxd4 {[%clk 0:02:04]} 13. Bxd4 {[%clk 0:02:02]}  Rxd4 {[%clk 0:02:05]} 14. Qf5+ {[%clk 0:01:44]}  Kb8 {[%clk 0:01:40]} 15. Rxd4 {[%clk 0:01:43]}  Qxd4 {[%clk 0:01:31]} 16. Rd1 {[%clk 0:01:19]}  g6 {[%clk 0:00:17]} 17. Rxd4 {[%clk 0:01:15]}  Bh6+ {[%clk 0:00:17]} 18. Qf4 {[%clk 0:01:08]}  Bxf4+ {[%clk 0:00:15]} 19. Rxf4 {[%clk 0:01:09]}  Nh5 {[%clk 0:00:15]} 20. Re4 {[%clk 0:01:05]}  b6 {[%clk 0:00:11]} 21. Re8+ {[%clk 0:01:01]}  Rxe8 {[%clk 0:00:10]} 22. Bxe8 {[%clk 0:01:02]}  Nf4 {[%clk 0:00:08]} 23. Bc6 {[%clk 0:00:41]}  Nd3+ {[%clk 0:00:07]} 24. Kc2 {[%clk 0:00:41]}  Nxf2 {[%clk 0:00:08]} 25. Bf3 {[%clk 0:00:35]}  g5 {[%clk 0:00:05]} 26. h3 {[%clk 0:00:27]}  Nh1 {[%clk 0:00:03]} 27. Ne4 {[%clk 0:00:26]} 1-0


[Site "https://www.chess.com"]

[Event "Titled Tuesday Blitz April 12 Early 2022"]
[White "Caruana, Fabiano"]
[Black "Bryakin, Mikhail"]
[WhiteFideId "2020009"]
[BlackFideId "4165314"]
[WhiteElo "2744"]
[BlackElo "2417"]
[Result "1-0"]
[Round "10"]
[TimeControl "180+1"]
[Date "2022.04.12"]
[WhiteClock "0:00:40"]
[BlackClock "0:00:49"]

1. c4 {[%clk 0:02:57]}  Nf6 {[%clk 0:02:57]} 2. Nc3 {[%clk 0:02:56]}  c5 {[%clk 0:02:54]} 3. g3 {[%clk 0:02:55]}  Nc6 {[%clk 0:02:53]} 4. Bg2 {[%clk 0:02:56]}  g6 {[%clk 0:02:53]} 5. Nf3 {[%clk 0:02:49]}  Bg7 {[%clk 0:02:53]} 6. d4 {[%clk 0:02:49]}  cxd4 {[%clk 0:02:54]} 7. Nxd4 {[%clk 0:02:50]}  O-O {[%clk 0:02:52]} 8. O-O {[%clk 0:02:50]}  d6 {[%clk 0:02:41]} 9. e3 {[%clk 0:02:46]}  Bd7 {[%clk 0:02:40]} 10. Qe2 {[%clk 0:02:43]}  Rc8 {[%clk 0:02:40]} 11. b3 {[%clk 0:02:38]}  Ne8 {[%clk 0:02:38]} 12. Rd1 {[%clk 0:02:37]}  Nxd4 {[%clk 0:02:37]} 13. exd4 {[%clk 0:02:37]}  Bc6 {[%clk 0:02:38]} 14. Be3 {[%clk 0:02:32]}  Bxg2 {[%clk 0:02:34]} 15. Kxg2 {[%clk 0:02:33]}  Nc7 {[%clk 0:02:31]} 16. Rac1 {[%clk 0:02:32]}  d5 {[%clk 0:02:23]} 17. c5 {[%clk 0:02:30]}  Qd7 {[%clk 0:02:23]} 18. b4 {[%clk 0:02:28]}  Rfe8 {[%clk 0:02:15]} 19. a4 {[%clk 0:02:21]}  h5 {[%clk 0:02:05]} 20. b5 {[%clk 0:02:14]}  Qf5 {[%clk 0:01:58]} 21. Qf3 {[%clk 0:02:12]}  Qxf3+ {[%clk 0:01:55]} 22. Kxf3 {[%clk 0:02:13]}  e6 {[%clk 0:01:55]} 23. a5 {[%clk 0:02:13]}  a6 {[%clk 0:01:53]} 24. b6 {[%clk 0:02:12]}  Na8 {[%clk 0:01:47]} 25. Na2 {[%clk 0:02:10]}  Bf8 {[%clk 0:01:44]} 26. Nb4 {[%clk 0:02:10]}  Be7 {[%clk 0:01:45]} 27. Rc2 {[%clk 0:02:03]}  f6 {[%clk 0:01:43]} 28. Rdc1 {[%clk 0:02:03]}  Kf7 {[%clk 0:01:44]} 29. Bd2 {[%clk 0:02:01]}  Rb8 {[%clk 0:01:38]} 30. c6 {[%clk 0:02:00]}  Bxb4 {[%clk 0:01:38]} 31. Bxb4 {[%clk 0:02:01]}  bxc6 {[%clk 0:01:39]} 32. Rxc6 {[%clk 0:02:01]}  Rb7 {[%clk 0:01:39]} 33. Bd6 {[%clk 0:01:53]}  Rd8 {[%clk 0:01:36]} 34. Bf4 {[%clk 0:01:52]}  g5 {[%clk 0:01:36]} 35. Bd2 {[%clk 0:01:51]}  Rdb8 {[%clk 0:01:33]} 36. h4 {[%clk 0:01:48]}  gxh4 {[%clk 0:01:29]} 37. gxh4 {[%clk 0:01:48]}  Nxb6 {[%clk 0:01:30]} 38. axb6 {[%clk 0:01:47]}  Rxb6 {[%clk 0:01:31]} 39. Rc7+ {[%clk 0:01:48]}  Kg6 {[%clk 0:01:31]} 40. Rg1+ {[%clk 0:01:47]}  Kf5 {[%clk 0:01:31]} 41. Rh7 {[%clk 0:01:48]}  Rb3+ {[%clk 0:01:31]} 42. Be3 {[%clk 0:01:48]}  e5 {[%clk 0:01:31]} 43. Rxh5+ {[%clk 0:01:48]}  Ke6 {[%clk 0:01:31]} 44. Rd1 {[%clk 0:01:27]}  e4+ {[%clk 0:01:14]} 45. Kf4 {[%clk 0:01:27]}  a5 {[%clk 0:01:09]} 46. Rc1 {[%clk 0:01:26]}  R8b6 {[%clk 0:00:58]} 47. Rc5 {[%clk 0:01:22]}  Ra6 {[%clk 0:00:59]} 48. Rhxd5 {[%clk 0:01:20]}  a4 {[%clk 0:00:59]} 49. Ra5 {[%clk 0:01:18]}  Rbb6 {[%clk 0:01:00]} 50. Rh5 {[%clk 0:01:00]}  Kf7 {[%clk 0:00:49]} 51. Rh7+ {[%clk 0:00:39]}  Kg6 {[%clk 0:00:49]} 52. Ra7 {[%clk 0:00:40]} 1-0


[Site "https://www.chess.com"]

[Event "Titled Tuesday Blitz April 12 Early 2022"]
[White "Clawitter, Craig"]
[Black "Mangialardo, Tiago Carvalho"]
[WhiteFideId "2023105"]
[BlackFideId "2130718"]
[WhiteElo "2217"]
[BlackElo "2046"]
[Result "1-0"]
[Round "10"]
[TimeControl "180+1"]
[Date "2022.04.13"]
[WhiteClock "0:00:03"]
[BlackClock "0:00:01"]

1. e4 {[%clk 0:03:00]}  Nf6 {[%clk 0:03:00]} 2. e5 {[%clk 0:03:01]}  Nd5 {[%clk 0:03:00]} 3. c4 {[%clk 0:03:01]}  Nb6 {[%clk 0:03:00]} 4. d4 {[%clk 0:03:02]}  d6 {[%clk 0:03:00]} 5. exd6 {[%clk 0:03:03]}  exd6 {[%clk 0:03:01]} 6. Nc3 {[%clk 0:03:03]}  Be7 {[%clk 0:03:01]} 7. Bd3 {[%clk 0:03:03]}  O-O {[%clk 0:03:00]} 8. Nge2 {[%clk 0:03:04]}  Bg4 {[%clk 0:03:00]} 9. f3 {[%clk 0:03:04]}  Bh4+ {[%clk 0:03:00]} 10. Ng3 {[%clk 0:02:48]}  Bh5 {[%clk 0:02:51]} 11. O-O {[%clk 0:02:46]}  Bg6 {[%clk 0:02:48]} 12. b3 {[%clk 0:02:35]}  Nc6 {[%clk 0:02:32]} 13. Be3 {[%clk 0:02:13]}  Re8 {[%clk 0:02:32]} 14. Bf2 {[%clk 0:02:13]}  Bf6 {[%clk 0:02:25]} 15. Bf5 {[%clk 0:01:49]}  d5 {[%clk 0:02:13]} 16. c5 {[%clk 0:01:48]}  Nc8 {[%clk 0:02:08]} 17. Qd2 {[%clk 0:01:22]}  N8e7 {[%clk 0:01:54]} 18. Bxg6 {[%clk 0:01:18]}  Nxg6 {[%clk 0:01:45]} 19. f4 {[%clk 0:00:59]}  b6 {[%clk 0:01:35]} 20. Rae1 {[%clk 0:00:49]}  Qd7 {[%clk 0:01:29]} 21. f5 {[%clk 0:00:38]}  Nh4 {[%clk 0:01:17]} 22. Nh5 {[%clk 0:00:21]}  Rxe1 {[%clk 0:00:56]} 23. Nxf6+ {[%clk 0:00:17]}  gxf6 {[%clk 0:00:56]} 24. Bxe1 {[%clk 0:00:12]}  Nxf5 {[%clk 0:00:50]} 25. Qf4 {[%clk 0:00:11]}  Nfxd4 {[%clk 0:00:18]} 26. Qxf6 {[%clk 0:00:09]}  Qe6 {[%clk 0:00:01]} 27. Qg5+ {[%clk 0:00:06]}  Qg6 {[%clk 0:00:02]} 28. Qxd5 {[%clk 0:00:05]}  Rd8 {[%clk 0:00:01]} 29. Qe4 {[%clk 0:00:03]} 1-0


[Site "https://www.chess.com"]

[Event "Titled Tuesday Blitz April 12 Early 2022"]
[White "Coto Mederos, Michel"]
[Black "Lianes Garcia, Marcos"]
[WhiteFideId "3508528"]
[BlackFideId "32060777"]
[WhiteElo "2427"]
[BlackElo "2310"]
[Result "0-1"]
[Round "10"]
[TimeControl "180+1"]
[Date "2022.04.12"]
[WhiteClock "0:00:08"]
[BlackClock "0:00:20"]

1. d4 {[%clk 0:03:00]}  g6 {[%clk 0:02:52]} 2. c4 {[%clk 0:02:56]}  Bg7 {[%clk 0:02:51]} 3. Nc3 {[%clk 0:02:56]}  c5 {[%clk 0:02:50]} 4. d5 {[%clk 0:02:56]}  d6 {[%clk 0:02:51]} 5. e4 {[%clk 0:02:51]}  e5 {[%clk 0:02:51]} 6. dxe6 {[%clk 0:02:45]}  Bxe6 {[%clk 0:02:40]} 7. Bd3 {[%clk 0:02:37]}  Nc6 {[%clk 0:02:40]} 8. Nf3 {[%clk 0:02:21]}  Nge7 {[%clk 0:02:40]} 9. O-O {[%clk 0:02:21]}  O-O {[%clk 0:02:40]} 10. Bf4 {[%clk 0:02:03]}  a6 {[%clk 0:02:36]} 11. Be2 {[%clk 0:01:59]}  Nd4 {[%clk 0:02:32]} 12. Nxd4 {[%clk 0:01:58]}  Bxd4 {[%clk 0:02:33]} 13. Bh6 {[%clk 0:01:54]}  Re8 {[%clk 0:02:33]} 14. Qd2 {[%clk 0:01:46]}  Nc6 {[%clk 0:02:29]} 15. Kh1 {[%clk 0:01:43]}  Bf6 {[%clk 0:02:20]} 16. f4 {[%clk 0:01:33]}  Nd4 {[%clk 0:02:20]} 17. f5 {[%clk 0:01:26]}  gxf5 {[%clk 0:02:11]} 18. exf5 {[%clk 0:01:27]}  Bxf5 {[%clk 0:02:04]} 19. Bd3 {[%clk 0:01:21]}  Bxd3 {[%clk 0:01:49]} 20. Qxd3 {[%clk 0:01:22]}  Be5 {[%clk 0:01:48]} 21. Qh3 {[%clk 0:00:54]}  Re6 {[%clk 0:01:46]} 22. Ne4 {[%clk 0:00:46]}  Rg6 {[%clk 0:01:41]} 23. Rf2 {[%clk 0:00:38]}  Qc8 {[%clk 0:01:34]} 24. Qh5 {[%clk 0:00:30]}  Qg4 {[%clk 0:01:23]} 25. Qxg4 {[%clk 0:00:23]}  Rxg4 {[%clk 0:01:24]} 26. Nf6+ {[%clk 0:00:19]}  Bxf6 {[%clk 0:01:24]} 27. Rxf6 {[%clk 0:00:20]}  Rg6 {[%clk 0:01:25]} 28. Raf1 {[%clk 0:00:20]}  Re8 {[%clk 0:01:17]} 29. h3 {[%clk 0:00:19]}  Rxf6 {[%clk 0:01:16]} 30. Rxf6 {[%clk 0:00:20]}  Re6 {[%clk 0:01:16]} 31. Bg5 {[%clk 0:00:14]}  Rxf6 {[%clk 0:00:45]} 32. Bxf6 {[%clk 0:00:15]}  Nc6 {[%clk 0:00:45]} 33. g4 {[%clk 0:00:11]}  Kf8 {[%clk 0:00:44]} 34. Kg2 {[%clk 0:00:10]}  Ke8 {[%clk 0:00:44]} 35. Kg3 {[%clk 0:00:08]}  Kd7 {[%clk 0:00:45]} 36. Kf4 {[%clk 0:00:06]}  Ke6 {[%clk 0:00:45]} 37. Bc3 {[%clk 0:00:07]}  f6 {[%clk 0:00:41]} 38. g5 {[%clk 0:00:07]}  Ne5 {[%clk 0:00:38]} 39. b3 {[%clk 0:00:03]}  b5 {[%clk 0:00:26]} 40. cxb5 {[%clk 0:00:03]}  axb5 {[%clk 0:00:27]} 41. a4 {[%clk 0:00:03]}  fxg5+ {[%clk 0:00:24]} 42. Kxg5 {[%clk 0:00:03]}  bxa4 {[%clk 0:00:24]} 43. bxa4 {[%clk 0:00:04]}  d5 {[%clk 0:00:18]} 44. a5 {[%clk 0:00:03]}  d4 {[%clk 0:00:18]} 45. Bb2 {[%clk 0:00:03]}  Nc6 {[%clk 0:00:17]} 46. a6 {[%clk 0:00:04]}  Kd5 {[%clk 0:00:17]} 47. Kh6 {[%clk 0:00:04]}  c4 {[%clk 0:00:17]} 48. Kxh7 {[%clk 0:00:04]}  c3 {[%clk 0:00:18]} 49. Bc1 {[%clk 0:00:04]}  d3 {[%clk 0:00:18]} 50. Kg6 {[%clk 0:00:05]}  d2 {[%clk 0:00:19]} 51. Bxd2 {[%clk 0:00:05]}  cxd2 {[%clk 0:00:19]} 52. h4 {[%clk 0:00:06]}  d1=Q {[%clk 0:00:20]} 53. h5 {[%clk 0:00:07]}  Qg4+ {[%clk 0:00:20]} 54. Kh6 {[%clk 0:00:08]}  Na7 {[%clk 0:00:19]} 55. Kh7 {[%clk 0:00:07]}  Qxh5+ {[%clk 0:00:20]} 56. Kg7 {[%clk 0:00:08]}  Qf3 {[%clk 0:00:20]} 0-1


[Site "https://www.chess.com"]

[Event "Titled Tuesday Blitz April 12 Early 2022"]
[White "Czerw, Dawid"]
[Black "Dwilewicz, Katarzyna"]
[WhiteFideId "1145746"]
[BlackFideId "1148486"]
[WhiteElo "2125"]
[BlackElo "1907"]
[Result "1-0"]
[Round "10"]
[TimeControl "180+1"]
[Date "2022.04.13"]
[WhiteClock "0:01:51"]
[BlackClock "0:00:02"]

1. d4 {[%clk 0:03:00]}  d5 {[%clk 0:02:59]} 2. c4 {[%clk 0:03:00]}  e6 {[%clk 0:02:59]} 3. Nc3 {[%clk 0:03:00]}  Bb4 {[%clk 0:02:59]} 4. Bd2 {[%clk 0:02:59]}  Nf6 {[%clk 0:02:56]} 5. e3 {[%clk 0:03:00]}  O-O {[%clk 0:02:55]} 6. Bd3 {[%clk 0:03:00]}  c5 {[%clk 0:02:55]} 7. cxd5 {[%clk 0:03:00]}  exd5 {[%clk 0:02:53]} 8. a3 {[%clk 0:03:00]}  Bxc3 {[%clk 0:02:46]} 9. bxc3 {[%clk 0:03:01]}  Nc6 {[%clk 0:02:38]} 10. Ne2 {[%clk 0:03:00]}  c4 {[%clk 0:02:36]} 11. Bc2 {[%clk 0:03:00]}  Re8 {[%clk 0:02:36]} 12. O-O {[%clk 0:02:59]}  b5 {[%clk 0:02:35]} 13. f3 {[%clk 0:02:58]}  a5 {[%clk 0:02:22]} 14. Ng3 {[%clk 0:02:57]}  Rb8 {[%clk 0:01:30]} 15. e4 {[%clk 0:02:51]}  b4 {[%clk 0:01:12]} 16. axb4 {[%clk 0:02:34]}  axb4 {[%clk 0:01:12]} 17. e5 {[%clk 0:02:35]}  b3 {[%clk 0:01:09]} 18. Bb1 {[%clk 0:02:26]}  Nd7 {[%clk 0:01:05]} 19. f4 {[%clk 0:02:25]}  Qb6 {[%clk 0:00:55]} 20. Kh1 {[%clk 0:02:12]}  Nf8 {[%clk 0:00:47]} 21. f5 {[%clk 0:02:12]}  Bd7 {[%clk 0:00:29]} 22. Nh5 {[%clk 0:02:11]}  b2 {[%clk 0:00:16]} 23. Ra2 {[%clk 0:02:07]}  Ra8 {[%clk 0:00:14]} 24. Qg4 {[%clk 0:02:04]}  Ng6 {[%clk 0:00:14]} 25. Rxa8 {[%clk 0:02:01]}  Rxa8 {[%clk 0:00:13]} 26. e6 {[%clk 0:02:02]}  fxe6 {[%clk 0:00:09]} 27. fxg6 {[%clk 0:02:02]}  h6 {[%clk 0:00:06]} 28. Nxg7 {[%clk 0:01:57]}  Ra1 {[%clk 0:00:04]} 29. Nxe6 {[%clk 0:01:52]}  Nd8 {[%clk 0:00:02]} 30. Rf8# {[%clk 0:01:51]} 1-0


[Site "https://www.chess.com"]

[Event "Titled Tuesday Blitz April 12 Early 2022"]
[White "Demchenko, Anton"]
[Black "Reprintsev, Alexander"]
[WhiteFideId "4160258"]
[BlackFideId "14100541"]
[WhiteElo "2539"]
[BlackElo "2108"]
[Result "1-0"]
[Round "10"]
[TimeControl "180+1"]
[Date "2022.04.12"]
[WhiteClock "0:02:14"]
[BlackClock "0:00:41"]

1. e4 {[%clk 0:03:00]}  d5 {[%clk 0:02:42]} 2. exd5 {[%clk 0:03:00]}  Qxd5 {[%clk 0:02:41]} 3. Nc3 {[%clk 0:03:00]}  Qa5 {[%clk 0:02:39]} 4. Nf3 {[%clk 0:03:00]}  Nf6 {[%clk 0:02:29]} 5. g3 {[%clk 0:03:00]}  Nc6 {[%clk 0:02:09]} 6. Bg2 {[%clk 0:03:00]}  Bg4 {[%clk 0:02:08]} 7. h3 {[%clk 0:03:00]}  Bh5 {[%clk 0:02:08]} 8. g4 {[%clk 0:02:44]}  Bg6 {[%clk 0:02:07]} 9. O-O {[%clk 0:02:44]}  O-O-O {[%clk 0:02:00]} 10. d3 {[%clk 0:02:45]}  h5 {[%clk 0:01:59]} 11. g5 {[%clk 0:02:45]}  Ne8 {[%clk 0:01:13]} 12. Bd2 {[%clk 0:02:43]}  h4 {[%clk 0:01:11]} 13. b4 {[%clk 0:02:40]}  Qf5 {[%clk 0:01:08]} 14. b5 {[%clk 0:02:37]}  Nd4 {[%clk 0:01:00]} 15. Nxd4 {[%clk 0:02:36]}  Rxd4 {[%clk 0:01:00]} 16. Be3 {[%clk 0:02:18]}  Rd7 {[%clk 0:00:45]} 17. Ne4 {[%clk 0:02:17]}  e6 {[%clk 0:00:41]} 18. c4 {[%clk 0:02:14]} 1-0


[Site "https://www.chess.com"]

[Event "Titled Tuesday Blitz April 12 Early 2022"]
[White "Derjabin, Ilja"]
[Black "Hoffmann, Asa"]
[WhiteFideId "14104768"]
[BlackFideId "2001470"]
[WhiteElo "2341"]
[BlackElo "2117"]
[Result "1-0"]
[Round "10"]
[TimeControl "180+1"]
[Date "2022.04.13"]
[WhiteClock "0:00:25"]
[BlackClock "0:00:14"]

1. d4 {[%clk 0:02:57]}  Nf6 {[%clk 0:02:59]} 2. c4 {[%clk 0:02:55]}  c5 {[%clk 0:02:59]} 3. d5 {[%clk 0:02:52]}  e5 {[%clk 0:02:58]} 4. Nc3 {[%clk 0:02:50]}  d6 {[%clk 0:02:58]} 5. e4 {[%clk 0:02:46]}  Be7 {[%clk 0:02:58]} 6. Nge2 {[%clk 0:02:42]}  Nbd7 {[%clk 0:02:58]} 7. Ng3 {[%clk 0:02:42]}  g6 {[%clk 0:02:57]} 8. Be2 {[%clk 0:02:40]}  h5 {[%clk 0:02:57]} 9. O-O {[%clk 0:02:40]}  h4 {[%clk 0:02:56]} 10. Nh1 {[%clk 0:02:40]}  Nh5 {[%clk 0:02:56]} 11. g3 {[%clk 0:02:33]}  Bg5 {[%clk 0:02:55]} 12. f4 {[%clk 0:02:32]}  exf4 {[%clk 0:02:43]} 13. gxf4 {[%clk 0:02:32]}  Bf6 {[%clk 0:02:42]} 14. e5 {[%clk 0:02:21]}  dxe5 {[%clk 0:02:40]} 15. f5 {[%clk 0:02:20]}  Nf8 {[%clk 0:02:07]} 16. fxg6 {[%clk 0:02:10]}  fxg6 {[%clk 0:02:05]} 17. Ne4 {[%clk 0:02:06]}  Bf5 {[%clk 0:01:54]} 18. Rxf5 {[%clk 0:02:05]}  gxf5 {[%clk 0:01:49]} 19. Bxh5+ {[%clk 0:02:04]}  Kd7 {[%clk 0:01:42]} 20. Nxc5+ {[%clk 0:01:59]}  Kc7 {[%clk 0:01:37]} 21. Nf2 {[%clk 0:01:49]}  b6 {[%clk 0:01:23]} 22. Ne6+ {[%clk 0:01:28]}  Nxe6 {[%clk 0:01:21]} 23. dxe6 {[%clk 0:01:28]}  Qxd1+ {[%clk 0:01:05]} 24. Bxd1 {[%clk 0:01:28]}  Kd6 {[%clk 0:01:03]} 25. Bb3 {[%clk 0:01:07]}  Kxe6 {[%clk 0:00:58]} 26. c5+ {[%clk 0:01:05]}  Ke7 {[%clk 0:00:58]} 27. cxb6 {[%clk 0:01:06]}  axb6 {[%clk 0:00:58]} 28. Be3 {[%clk 0:01:06]}  Rab8 {[%clk 0:00:49]} 29. Rc1 {[%clk 0:01:05]}  Rhc8 {[%clk 0:00:40]} 30. Rxc8 {[%clk 0:01:05]}  Rxc8 {[%clk 0:00:40]} 31. Bxb6 {[%clk 0:01:06]}  Rc1+ {[%clk 0:00:37]} 32. Kg2 {[%clk 0:01:06]}  Rb1 {[%clk 0:00:37]} 33. Bc5+ {[%clk 0:01:02]}  Kd7 {[%clk 0:00:37]} 34. Ba4+ {[%clk 0:00:50]}  Kc7 {[%clk 0:00:36]} 35. b4 {[%clk 0:00:48]}  e4 {[%clk 0:00:36]} 36. b5 {[%clk 0:00:41]}  f4 {[%clk 0:00:31]} 37. Nxe4 {[%clk 0:00:36]}  Rb2+ {[%clk 0:00:30]} 38. Kf3 {[%clk 0:00:36]}  Rxa2 {[%clk 0:00:25]} 39. b6+ {[%clk 0:00:34]}  Kb7 {[%clk 0:00:23]} 40. Nd6+ {[%clk 0:00:32]}  Kb8 {[%clk 0:00:23]} 41. Bc6 {[%clk 0:00:28]}  Rc2 {[%clk 0:00:16]} 42. Ne4 {[%clk 0:00:27]}  Bd8 {[%clk 0:00:15]} 43. Bd6+ {[%clk 0:00:26]}  Kc8 {[%clk 0:00:14]} 44. b7# {[%clk 0:00:25]} 1-0


[Site "https://www.chess.com"]